bitfinex-derivatives/quotes_ETHF0:USTF0_20210703
["timestamp","ask_amount","ask_price","bid_price","bid_amount"]
[1625297522706,3.5433,2175.3,2169.8,5.0]
[1625297522800,3.5433,2175.3,2169.8,21.806026]
[1625297522902,3.5433,2175.3,2170.2,1.15]
[1625297523003,3.5433,2175.3,2170.2,4.9102]
[1625297523105,3.5433,2175.3,2170.3,5.0]
[1625297523202,3.5433,2175.3,2170.3,21.666192]
[1625297523354,2.20527,2173.5,2173.4,2.20527]
[1625297523452,14.8371,2175.5,2173.4,5.36467]
[1625297523756,0.54053534,2175.6,2173.4,5.36467]
[1625297525411,2.20527,2174.4,2174.0,2.20527]
[1625297527113,2.20527,2174.4,2173.4,2.20527]
[1625297527213,2.20527,2174.4,2172.3,14.5739]
[1625297527413,2.20527,2173.3,2173.1,2.20527]
[1625297527513,3.049,2173.6,2173.1,2.20527]
[1625297528265,3.049,2173.6,2172.3,14.5739]
[1625297528466,3.049,2173.6,2169.7,4.32147922]
[1625297528668,3.049,2173.6,2169.7,1.00837922]
[1625297528818,2.7099,2174.7,2169.7,1.00837922]
[1625297528921,2.7099,2174.7,2170.8,4.3508]
[1625297529023,0.54053534,2175.6,2170.8,4.3508]
[1625297529024,5.54053534,2175.6,2170.8,4.3508]
[1625297529123,5.54053534,2175.6,2170.9,16.834514]
[1625297529374,2.20527,2173.0,2172.8,2.20527]
[1625297529671,5.58087,2173.0,2172.6,2.20527]
[1625297529770,5.58087,2173.0,2170.9,14.3278]
[1625297531072,5.58087,2173.0,2171.0,16.80244]
[1625297531377,2.20527,2172.1,2172.0,2.20527]
[1625297531536,2.20527,2172.1,2170.9,14.3278]
[1625297531928,2.20527,2172.1,2167.2,1.0]
[1625297532078,5.0,2172.0,2160.5,6.986]
[1625297532178,1.15,2171.6,2164.0,1.1]
[1625297532279,1.15,2171.6,2164.9,0.932]
[1625297532379,3.5994,2171.6,2164.9,0.932]
[1625297532480,5.0,2171.5,2162.0,8.0]
[1625297532580,5.0,2171.5,2164.2,5.0]
[1625297532730,55.9226,2171.3,2164.2,5.0]
[1625297532843,5.0,2171.2,2164.2,5.0]
[1625297532981,5.0,2171.2,2164.3,16.836747]
[1625297533085,21.662424,2171.2,2164.3,16.836747]
[1625297533181,1.15,2171.0,2162.5,1.0]
[1625297533280,4.4101,2171.0,2164.5,16.701765]
[1625297533381,4.4101,2171.0,2165.6,2.20527]
[1625297533382,2.20527,2166.2,2165.6,2.20527]
[1625297533482,2.20527,2166.4,2165.6,2.20527]
[1625297533584,5.87197,2166.4,2165.6,2.20527]
[1625297533781,5.87197,2166.4,2165.7,16.672986]
[1625297533883,4.77884931,2166.4,2165.7,16.672986]
[1625297534132,4.77884931,2166.4,2165.6,2.20527]
[1625297534396,4.77884931,2166.4,2165.7,16.75166]
[1625297535288,5.0,2170.7,2165.7,16.75166]
[1625297535392,2.20527,2167.3,2167.2,2.20527]
[1625297535490,5.0,2170.2,2167.2,2.20527]
[1625297535642,15.7332,2170.8,2167.2,5.02847]
[1625297535793,2.54374855,2178.7,2167.2,5.02847]
[1625297535891,14.5331,2172.8,2167.2,5.02847]
[1625297536142,14.7926,2172.1,2167.2,5.02847]
[1625297536241,14.7926,2172.1,2167.3,16.863049]
[1625297536441,16.729299,2171.2,2167.3,16.863049]
[1625297536547,16.729299,2171.2,2167.2,5.02847]
[1625297536754,7.4494,2171.6,2167.7,1.15]
[1625297537152,7.4494,2171.6,2167.8,16.669172]
[1625297537502,2.20527,2168.7,2168.6,2.20527]
[1625297537654,5.66757,2168.7,2168.6,2.20527]
[1625297538256,5.66757,2168.7,2166.6,2.5284]
[1625297538655,5.66757,2168.7,2166.7,5.0]
[1625297538755,2.20527,2168.7,2166.7,5.0]
[1625297538910,2.20527,2168.7,2166.7,21.734482]
[1625297539358,2.20527,2168.7,2166.7,16.734482]
[1625297539460,2.20527,2168.3,2168.2,2.20527]
[1625297540861,2.20527,2168.7,2168.2,2.20527]
[1625297540961,5.0,2171.7,2168.2,4.63257]
[1625297541363,5.0,2171.7,2168.3,16.814659]
[1625297541463,2.20527,2169.4,2169.2,2.20527]
[1625297542316,2.6943,2170.4,2169.2,2.20527]
[1625297542518,53.6731,2172.3,2169.2,2.20527]
[1625297542618,58.6731,2172.3,2169.2,2.20527]
[1625297542721,53.6731,2172.3,2169.2,2.20527]
[1625297543420,53.6731,2172.3,2169.6,2.20527]
[1625297543571,4.96707,2169.7,2169.6,2.20527]
[1625297544530,2.20527,2169.7,2169.6,2.20527]
[1625297544923,3.2333,2171.3,2169.6,2.20527]
[1625297545221,3.2333,2171.3,2169.6,5.31847]
[1625297545574,2.20527,2170.0,2169.6,7.52374]
[1625297546776,6.0,2173.5,2169.6,7.52374]
[1625297546777,5.0,2173.5,2169.6,7.52374]
[1625297546881,5.0,2173.5,2169.7,16.834543]
[1625297547480,2.20527,2171.1,2171.0,2.20527]
[1625297547833,2.20527,2171.1,2170.7,3.7377]
[1625297547980,2.20527,2171.1,2167.6,14.2133]
[1625297548079,2.20527,2171.1,2168.8,5.0]
[1625297548532,2.20527,2171.1,2168.9,16.607]
[1625297549031,2.20527,2171.1,2168.9,24.5956]
[1625297549331,2.20527,2171.1,2168.9,7.9886]
[1625297549484,2.20527,2170.4,2170.2,2.20527]
[1625297549681,5.14967,2170.4,2170.2,2.20527]
[1625297551538,2.9444,2170.4,2170.3,2.20527]
[1625297551639,2.9749,2171.3,2170.3,2.20527]
[1625297552791,3.4388,2171.8,2170.3,2.20527]
[1625297553041,5.0,2172.9,2170.3,5.60767]
[1625297553545,2.20527,2170.9,2170.8,2.20527]
[1625297555512,4.41054,2170.9,2170.8,2.20527]
[1625297557472,45.2459,2173.0,2170.8,2.20527]
[1625297557473,5.0,2173.0,2170.8,2.20527]
[1625297557574,2.20527,2171.6,2170.8,7.76844]
[1625297558880,2.20527,2171.6,2170.9,16.609942]
[1625297559178,2.20527,2171.6,2170.8,7.76844]
[1625297559527,2.20527,2171.6,2169.0,9.0455]
[1625297559528,4.41054,2170.9,2170.3,2.20527]
[1625297560282,4.41054,2170.9,2170.4,16.73356]
[1625297560383,4.41054,2170.9,2170.4,19.54026]
[1625297560780,1.0,2173.3,2170.4,19.54026]
[1625297560880,5.0,2172.8,2170.4,19.54026]
[1625297561082,0.31570794,2173.2,2170.4,19.54026]
[1625297561181,15.5428,2174.2,2170.4,19.54026]
[1625297561281,0.31568857,2174.1,2170.4,19.54026]
[1625297561598,2.20527,2171.5,2171.4,2.20527]
[1625297563563,4.41054,2171.5,2171.4,2.20527]
[1625297564214,4.41054,2171.5,2171.2,2.20527]
[1625297567024,1.0,2174.3,2171.2,2.20527]
[1625297567123,1.915,2175.3,2171.2,5.90007]
[1625297567224,0.915,2175.3,2171.2,5.90007]
[1625297567474,5.31819893,2174.6,2171.2,5.90007]
[1625297567574,2.20527,2172.4,2172.3,2.20527]
[1625297568978,2.4858,2174.3,2172.3,2.20527]
[1625297569081,15.0315,2175.1,2172.3,5.62487]
[1625297569328,0.54053534,2175.6,2172.3,5.62487]
[1625297569485,0.54053534,2175.6,2172.4,16.709211]
[1625297569582,2.20527,2173.2,2173.1,2.20527]
[1625297569928,2.20527,2173.2,2172.3,3.4196]
[1625297570232,2.20527,2173.2,2170.4,3.7407]
[1625297570883,2.20527,2173.2,2171.3,16.662081]
[1625297571586,2.20527,2172.3,2172.0,2.20527]
[1625297571984,2.20527,2172.3,2172.1,16.724917]
[1625297572235,2.20527,2172.3,2172.0,2.20527]
[1625297572236,2.20527,2172.5,2172.0,2.20527]
[1625297572485,2.20527,2172.5,2172.1,16.77244]
[1625297573640,2.20527,2172.5,2172.4,2.20527]
[1625297573740,2.20527,2172.5,2172.4,4.88817]
[1625297573943,2.20527,2172.5,2172.4,21.609571]
[1625297574244,2.20527,2172.5,2172.4,4.88817]
[1625297575196,2.20527,2172.5,2172.4,2.20527]
[1625297575996,2.20527,2172.5,2170.8,5.0]
[1625297576098,5.32697,2172.5,2170.5,15.3402]
[1625297576348,5.32697,2172.5,2167.5,2.0225]
[1625297576449,5.32697,2172.5,2168.8,8.0]
[1625297576618,5.32697,2172.5,2170.6,16.663173]
[1625297576817,5.32697,2172.5,2170.6,21.663173]
[1625297576914,5.32697,2172.5,2170.1,3.7028]
[1625297577018,5.32697,2172.5,2170.2,16.685574]
[1625297577221,5.32697,2172.5,2170.7,16.831186]
[1625297577471,5.32697,2172.5,2169.6,1.0]
[1625297577569,5.32697,2172.5,2170.3,16.795553]
[1625297577679,2.20527,2171.3,2171.1,2.20527]
[1625297578228,5.13177,2171.3,2171.1,2.20527]
[1625297579880,5.13177,2171.3,2169.5,1.0]
[1625297579988,5.13177,2171.3,2169.3,15.0843]
[1625297580438,5.13177,2171.3,2168.5,1.0]
[1625297580588,5.13177,2171.3,2169.4,16.851791]
[1625297580837,5.13177,2171.3,2168.9,16.709726]
[1625297581038,5.13177,2171.3,2169.5,16.676889]
[1625297581387,5.13177,2171.3,2168.9,16.604127]
[1625297581643,2.20527,2170.2,2170.1,2.20527]
[1625297581892,2.20527,2170.4,2170.1,2.20527]
[1625297583697,4.41054,2170.4,2170.1,4.41054]
[1625297585351,7.05464,2170.4,2168.8,14.8813]
[1625297585651,2.20527,2169.4,2169.3,2.20527]
[1625297585752,2.8298,2169.7,2169.3,2.20527]
[1625297587655,2.20527,2169.4,2169.3,2.20527]
[1625297589217,5.79607,2169.4,2169.3,2.20527]
[1625297589519,3.5908,2169.4,2169.3,18.862813]
[1625297591527,3.5908,2169.4,2169.3,2.20527]
[1625297591878,2.20527,2169.6,2169.3,2.20527]
[1625297591983,2.67977985,2172.2,2169.3,4.72527]
[1625297592078,2.67977985,2172.2,2169.4,5.0]
[1625297592328,15.3883,2172.4,2169.5,16.827131]
[1625297592788,5.0,2172.3,2169.4,17.792721]
[1625297592888,5.0,2172.3,2169.4,16.792721]
[1625297592986,5.0,2172.3,2169.6,16.679255]
[1625297593336,5.0,2172.3,2169.4,16.648722]
[1625297593438,19.165,2172.4,2169.4,17.648722]
[1625297593587,19.165,2172.4,2169.7,16.594018]
[1625297593687,2.20527,2171.0,2170.8,2.20527]
[1625297594240,2.20527,2171.2,2170.8,2.20527]
[1625297594341,19.165,2172.4,2170.8,2.20527]
[1625297594640,3.7767,2172.4,2170.9,16.591876]
[1625297594790,5.36739238,2173.6,2170.9,16.591876]
[1625297594791,2.68308632,2173.5,2171.0,5.0]
[1625297594890,2.68308632,2173.5,2171.0,8.7756]
[1625297595091,18.08236514,2173.7,2171.1,16.59104]
[1625297595190,23.08236514,2173.7,2171.1,16.59104]
[1625297595591,7.68306514,2173.7,2171.1,16.59104]
[1625297595693,3.48796225,2173.9,2171.1,16.59104]
[1625297595694,2.20527,2172.1,2172.0,2.20527]
[1625297596694,2.20527,2172.1,2167.8,6.986]
[1625297596695,5.85297,2172.1,2167.8,6.986]
[1625297596897,5.85297,2172.1,2169.0,1.0]
[1625297597101,5.85297,2172.1,2169.4,4.759]
[1625297597347,5.85297,2172.1,2169.6,16.803687]
[1625297597548,5.85297,2172.1,2169.6,21.803687]
[1625297597697,2.20527,2171.2,2171.0,2.20527]
[1625297597798,4.86487,2171.2,2171.0,2.20527]
[1625297598298,2.6596,2171.2,2171.0,2.20527]
[1625297599050,14.8658,2173.0,2171.0,2.20527]
[1625297599250,14.8658,2173.0,2171.1,16.611379]
[1625297599351,5.0,2173.3,2171.1,16.611379]
[1625297599551,2.68490257,2173.3,2171.1,16.611379]
[1625297599750,2.20527,2171.8,2171.7,2.20527]
[1625297600251,5.78417,2171.8,2171.7,2.20527]
[1625297600652,5.78417,2171.8,2171.5,2.20527]
[1625297601761,2.20527,2171.6,2171.5,2.20527]
[1625297613916,2.20527,2171.6,2171.2,2.20527]
[1625297614016,2.20527,2171.6,2169.6,15.0289]
[1625297615422,7.20527,2171.6,2169.6,15.0289]
[1625297615820,2.20527,2170.7,2170.4,2.20527]
[1625297615972,2.20527,2170.9,2170.4,2.20527]
[1625297617833,4.41054,2170.9,2170.8,2.20527]
[1625297618340,4.41054,2170.9,2170.4,2.20527]
[1625297618793,7.56404,2170.9,2170.4,2.20527]
[1625297619499,7.56404,2170.9,2168.5,14.6761]
[1625297619649,12.56404,2170.9,2168.6,1.0]
[1625297619899,2.5803,2169.6,2169.5,2.20527]
[1625297621003,2.88847114,2171.2,2169.5,2.20527]
[1625297621102,1.88847114,2171.2,2169.5,5.00167]
[1625297621203,14.4411,2171.4,2169.5,5.00167]
[1625297621302,1.88834125,2171.5,2169.5,5.00167]
[1625297621872,2.20527,2170.2,2170.0,2.20527]
[1625297623827,2.20527,2170.2,2170.1,2.20527]
[1625297627201,2.20527,2170.2,2169.0,1.0]
[1625297627303,4.83177,2170.2,2169.0,1.0]
[1625297627400,4.83177,2170.2,2168.5,5.0]
[1625297627500,4.83177,2170.2,2168.4,14.7292]
[1625297627803,4.83177,2170.2,2168.5,16.764014]
[1625297627907,2.20527,2169.6,2169.5,2.20527]
[1625297628552,2.20527,2170.2,2169.5,2.20527]
[1625297628655,3.2673,2169.7,2168.8,1.0]
[1625297628754,3.2673,2169.7,2168.4,14.7292]
[1625297629006,3.2673,2169.7,2167.5,15.3155]
[1625297629207,3.2673,2169.7,2167.5,14.393]
[1625297629518,3.2673,2169.7,2167.6,16.612568]
[1625297629708,3.2673,2169.7,2167.7,5.0]
[1625297629913,2.20527,2169.6,2169.4,2.20527]
[1625297631909,2.20527,2169.5,2169.4,2.20527]
[1625297632961,1.89603153,2170.4,2169.4,2.20527]
[1625297633362,2.70861647,2170.5,2169.4,2.20527]
[1625297633363,1.89596275,2170.5,2169.4,2.20527]
[1625297633564,1.89596275,2170.5,2169.5,16.662328]
[1625297633765,1.89635468,2170.6,2169.5,16.662328]
[1625297633864,2.20527,2170.2,2170.1,2.20527]
[1625297635265,2.20527,2170.2,2168.9,1.0]
[1625297635417,2.20527,2170.2,2167.7,1.0]
[1625297635867,2.20527,2169.6,2169.4,2.20527]
[1625297637595,2.20527,2169.6,2169.1,2.20527]
[1625297637899,2.20527,2169.2,2169.1,2.20527]
[1625297638050,4.98297,2169.2,2167.5,0.9225]
[1625297638153,4.98297,2169.2,2167.5,5.9225]
[1625297638400,4.98297,2169.2,2167.1,1.0]
[1625297639009,4.98297,2169.2,2167.2,16.737926]
[1625297639759,4.98297,2169.2,2166.7,1.0]
[1625297639859,4.98297,2169.2,2166.6,20.2767]
[1625297639960,5.84007,2168.6,2168.5,2.20527]
[1625297641915,8.04534,2168.6,2168.5,2.20527]
[1625297643115,8.04534,2168.6,2168.3,2.20527]
[1625297643874,8.04534,2168.6,2168.3,4.41054]
[1625297645222,1.89353415,2169.8,2168.3,4.41054]
[1625297645322,1.89353415,2169.8,2168.3,6.70654]
[1625297645675,1.893399,2170.0,2168.3,6.70654]
[1625297645874,1.893399,2170.0,2168.4,16.75795]
[1625297645972,2.20527,2169.6,2169.5,2.20527]
[1625297646075,2.20527,2169.6,2169.3,2.20527]
[1625297647928,2.20527,2169.4,2169.3,2.20527]
[1625297652357,1.89211881,2170.3,2169.3,2.20527]
[1625297652509,1.89124718,2170.7,2169.3,4.88907]
[1625297652860,1.89113045,2170.8,2169.4,16.593741]
[1625297653162,1.89112433,2171.0,2169.4,16.593741]
[1625297653267,1.89112433,2171.0,2169.4,21.352741]
[1625297654018,2.20527,2170.1,2170.0,2.20527]
[1625297654919,1.89085969,2171.1,2170.0,2.20527]
[1625297655121,1.89062538,2171.3,2170.0,2.20527]
[1625297655622,1.89065941,2171.7,2170.0,2.20527]
[1625297655721,1.89065941,2171.7,2170.0,3.20527]
[1625297655871,1.89065941,2171.7,2170.1,16.761356]
[1625297655975,2.20527,2171.3,2171.2,2.20527]
[1625297656073,2.20527,2171.3,2171.2,5.02507]
[1625297657775,2.20527,2171.3,2171.2,2.20527]
[1625297657927,4.73027,2171.3,2171.2,2.20527]
[1625297658024,6.93554,2171.3,2171.2,2.20527]
[1625297659178,4.73027,2171.3,2171.2,2.20527]
[1625297659279,1.89027246,2172.2,2171.2,2.20527]
[1625297659729,1.8901354,2172.4,2171.2,2.20527]
[1625297660028,1.8901354,2172.4,2170.9,4.1544]
[1625297660029,2.20527,2172.0,2171.9,2.20527]
[1625297662084,4.41054,2172.0,2171.9,2.20527]
[1625297663092,4.41054,2172.0,2171.7,2.20527]
[1625297665959,2.20527,2172.0,2171.7,2.20527]
[1625297666160,2.20527,2172.0,2171.9,2.20527]
[1625297667079,2.20527,2172.4,2171.9,2.20527]
[1625297668178,2.20527,2172.4,2172.3,2.20527]
[1625297670733,2.20527,2172.4,2172.3,3.12817]
[1625297671083,2.20527,2172.4,2172.3,2.20527]
[1625297672287,4.85687,2172.4,2170.8,0.9281]
[1625297672389,4.85687,2172.4,2170.7,1.0]
[1625297672541,4.85687,2172.4,2169.0,9.24605675]
[1625297672688,4.85687,2172.4,2169.9,5.0]
[1625297673039,4.85687,2172.4,2170.7,19.601088]
[1625297673492,4.85687,2172.4,2170.7,20.601088]
[1625297673593,4.85687,2172.4,2170.7,4.0228]
[1625297673893,1.35019278,2172.3,2170.7,4.0228]
[1625297673998,1.35019278,2172.3,2170.7,3.0228]
[1625297674093,1.35019278,2172.3,2169.9,5.0]
[1625297674193,2.20527,2171.4,2171.2,2.20527]
[1625297674293,5.75147,2171.4,2171.2,2.20527]
[1625297674594,3.5462,2171.4,2171.2,2.20527]
[1625297675501,1.34999812,2172.4,2171.2,2.20527]
[1625297675598,1.34999812,2172.4,2171.2,5.92667]
[1625297675948,3.50999511,2172.9,2171.3,16.831002]
[1625297675949,1.34987873,2172.7,2171.3,16.831002]
[1625297676055,1.34987873,2172.7,2171.6,48.0211]
[1625297676203,1.34987873,2172.7,2172.5,2.20527]
[1625297676204,2.20527,2172.6,2172.5,2.20527]
[1625297677858,5.86827,2172.6,2172.5,2.20527]
[1625297678162,8.07354,2172.6,2172.5,2.20527]
[1625297678258,8.07354,2172.6,2171.7,1.0]
[1625297678409,8.07354,2172.6,2170.8,1.0]
[1625297678611,9.42318415,2172.6,2170.8,1.0]
[1625297678958,9.42318415,2172.6,2170.9,16.808987]
[1625297679111,9.42318415,2172.6,2170.9,17.808987]
[1625297680211,2.20527,2171.5,2171.4,2.20527]
[1625297680310,5.23417,2171.5,2171.4,2.20527]
[1625297680512,5.23417,2171.5,2170.0,1.0]
[1625297680911,5.23417,2171.5,2169.9,4.759]
[1625297681563,5.23417,2171.5,2169.9,5.759]
[1625297681665,5.23417,2171.5,2169.9,4.759]
[1625297682216,2.20527,2170.9,2170.8,2.20527]
[1625297682516,4.70717,2170.9,2170.8,2.20527]
[1625297684420,2.20527,2170.9,2170.8,2.20527]
[1625297684520,1.35000873,2172.0,2170.8,2.20527]
[1625297684824,6.10875223,2172.4,2170.8,18.793562]
[1625297685071,1.34975223,2172.4,2170.8,18.793562]
[1625297686274,2.20527,2171.9,2171.8,2.20527]
[1625297686374,5.05707,2171.9,2171.8,2.20527]
[1625297686874,5.05707,2171.9,2171.6,2.20527]
[1625297687225,5.05707,2171.9,2170.8,1.0]
[1625297687324,5.05707,2171.9,2169.8,15.2278]
[1625297687427,5.05707,2171.9,2170.0,1.0]
[1625297687979,5.05707,2171.9,2170.1,16.616431]
[1625297688079,5.05707,2171.9,2170.1,17.616431]
[1625297688331,2.20527,2171.2,2171.1,2.20527]
[1625297688430,4.49577,2171.2,2171.1,2.20527]
[1625297692653,2.2905,2171.2,2171.1,2.20527]
[1625297692752,1.3496449,2172.5,2171.1,2.20527]
[1625297692853,1.3496449,2172.5,2171.1,18.926021]
[1625297693652,5.01243864,2172.6,2171.1,18.926021]
[1625297693902,1.34946546,2172.5,2171.1,18.926021]
[1625297694311,2.20527,2172.2,2172.1,2.20527]
[1625297696316,4.41054,2172.2,2172.1,2.20527]
[1625297699123,4.41054,2172.2,2171.8,2.20527]
[1625297700326,2.20527,2171.9,2171.8,2.20527]
[1625297700426,4.94087,2171.9,2171.8,2.20527]
[1625297700527,4.94087,2171.9,2170.8,1.0]
[1625297700731,4.94087,2171.9,2169.0,15.3832]
[1625297700829,4.94087,2171.9,2170.0,6.0]
[1625297701230,4.94087,2171.9,2170.1,22.756374]
[1625297701588,4.94087,2171.9,2170.1,6.0]
[1625297701833,4.94087,2171.9,2170.2,16.835917]
[1625297702032,4.94087,2171.9,2170.2,22.835917]
[1625297702333,4.94087,2171.9,2171.4,2.20527]
[1625297703638,4.94087,2171.9,2171.5,16.723731]
[1625297703986,1.34864645,2172.9,2171.5,21.723731]
[1625297704094,1.34861177,2173.0,2171.5,21.723731]
[1625297704344,1.34861177,2173.0,2172.9,2.20527]
[1625297704537,2.20527,2173.1,2172.9,2.20527]
[1625297707302,2.20527,2173.5,2172.9,2.20527]
[1625297707402,1.34744202,2173.7,2172.9,2.20527]
[1625297707603,4.31181447,2174.3,2172.9,2.20527]
[1625297707604,1.34669327,2174.4,2172.9,2.20527]
[1625297707953,1.3466447,2174.5,2173.0,16.622801]
[1625297708368,3.55190731,2174.4,2174.2,2.20527]
[1625297708620,3.55190731,2174.4,2174.2,1.11511347]
[1625297708621,2.20527,2174.4,2174.2,1.11511347]
[1625297709969,1.34528461,2174.9,2174.2,1.11511347]
[1625297710222,1.3451709,2175.1,2174.2,1.11511347]
[1625297710420,1.3451709,2175.1,2173.8,44.8219]
[1625297710421,3.5504409,2175.1,2175.0,4.41054]
[1625297710622,2.20527,2175.1,2175.0,4.41054]
[1625297711524,2.20527,2175.1,2173.8,43.8219]
[1625297711676,4.81017,2175.1,2173.3,5.0]
[1625297711776,4.81017,2175.1,2173.3,5.9276]
[1625297711978,4.81017,2175.1,2173.3,5.0]
[1625297712179,4.81017,2175.1,2173.4,16.574165]
[1625297712330,4.81017,2175.1,2173.4,17.574165]
[1625297712479,4.81017,2175.1,2174.5,2.20527]
[1625297713786,4.81017,2175.1,2174.3,2.20527]
[1625297714385,4.81017,2175.1,2175.0,2.20527]
[1625297715288,2.20527,2175.1,2175.0,2.20527]
[1625297715586,2.20527,2175.1,2175.0,18.96205]
[1625297715887,2.20527,2175.1,2175.0,2.20527]
[1625297716738,2.20527,2175.1,2175.0,18.981845]
[1625297717844,2.20527,2175.1,2175.0,2.20527]
[1625297722325,2.20527,2175.5,2175.0,2.20527]
[1625297722427,0.54053534,2175.6,2175.4,2.20527]
[1625297723581,0.54053534,2175.6,2175.5,54.8009]
[1625297723683,0.54053534,2175.6,2175.5,71.573178]
[1625297724535,0.54053534,2175.6,2175.5,73.778448]
[1625297725137,2.76615889,2176.3,2175.5,73.778448]
[1625297725234,0.56088889,2176.3,2175.5,73.778448]
[1625297725339,0.56088889,2176.3,2175.6,5.0]
[1625297725684,0.56088889,2176.3,2175.7,16.630422]
[1625297726184,0.56088889,2176.3,2175.6,16.561361]
[1625297726391,1.07304867,2177.0,2175.6,16.561361]
[1625297726484,1.07304867,2177.0,2176.2,4.41054]
[1625297726846,1.07304867,2177.0,2176.3,16.673115]
[1625297727002,4.867e-05,2177.0,2176.3,19.325815]
[1625297728199,4.867e-05,2177.0,2176.3,16.673115]
[1625297728511,4.867e-05,2177.0,2176.9,4.41054]
[1625297729221,4.867e-05,2177.0,2176.9,25.970974]
[1625297729321,0.00010049,2178.5,2176.9,29.632374]
[1625297729423,0.99191346,2179.3,2176.9,29.632374]
[1625297729620,0.99191346,2179.3,2177.4,1.15]
[1625297729721,0.99191346,2179.3,2177.9,42.6095]
[1625297729822,0.99191346,2179.3,2177.4,1.15]
[1625297730022,0.99191346,2179.3,2177.5,16.733163]
[1625297730474,3.19718346,2179.3,2179.2,2.20527]
[1625297730827,3.19718346,2179.3,2177.5,16.733163]
[1625297730928,3.19718346,2179.3,2177.8,54.8176]
[1625297731427,3.19718346,2179.3,2177.9,16.771594]
[1625297731728,3.19718346,2179.3,2177.8,54.8176]
[1625297732179,0.99191346,2179.3,2177.8,54.8176]
[1625297732480,0.99191346,2179.3,2179.2,2.20527]
[1625297735089,4.41054,2179.5,2179.2,2.20527]
[1625297735739,2.42264,2179.5,2179.2,2.20527]
[1625297735840,0.02,2180.0,2179.2,2.20527]
[1625297736494,0.02,2180.0,2179.9,4.41054]
[1625297737255,2.20527,2180.9,2179.9,4.41054]
[1625297737350,0.9799022,2181.8,2179.9,4.41054]
[1625297738097,0.9799022,2181.8,2180.0,16.509584]
[1625297738550,2.20527,2181.6,2181.2,4.41054]
[1625297740502,3.1851722,2181.8,2181.2,4.41054]
[1625297741302,6.83e-05,2181.3,2181.2,4.41054]
[1625297741554,0.00010957,2181.4,2181.2,4.41054]
[1625297741653,1.4111722,2182.1,2181.2,4.41054]
[1625297741761,15.4339,2183.5,2181.2,4.41054]
[1625297741860,0.31040771,2183.4,2181.2,4.41054]
[1625297741973,0.31040771,2183.4,2181.3,16.728812]
[1625297742221,0.31040771,2183.4,2181.2,4.41054]
[1625297742525,2.20527,2182.7,2182.6,2.20527]
[1625297743423,4.759,2183.6,2182.6,2.20527]
[1625297743625,0.3096091,2183.5,2182.6,2.20527]
[1625297743831,4.759,2183.6,2182.6,2.20527]
[1625297743932,5.31988889,2184.4,2182.6,2.20527]
[1625297744179,0.30957395,2184.0,2182.6,2.20527]
[1625297744530,2.20527,2183.5,2183.4,2.20527]
[1625297745037,2.20527,2183.5,2183.2,2.20527]
[1625297746037,2.20527,2183.5,2181.4,1.0]
[1625297746189,2.20527,2183.5,2180.4,14.3451]
[1625297746190,5.27187,2183.5,2180.4,14.3451]
[1625297746591,2.20527,2182.5,2182.4,2.20527]
[1625297746688,5.36127,2182.5,2182.4,2.20527]
[1625297746889,3.156,2182.5,2182.4,2.20527]
[1625297748194,3.156,2182.5,2182.2,2.20527]
[1625297748295,3.156,2182.5,2180.5,1.0]
[1625297748446,3.156,2182.5,2180.4,14.3451]
[1625297748548,2.20527,2182.2,2182.1,2.20527]
[1625297748646,3.156,2182.5,2182.1,2.20527]
[1625297749748,3.156,2182.5,2181.9,2.20527]
[1625297749849,3.156,2182.5,2180.5,1.0]
[1625297749947,3.156,2182.5,2180.4,0.9109]
[1625297750046,3.156,2182.5,2179.6,15.1106]
[1625297750247,3.156,2182.5,2179.6,20.1106]
[1625297750450,3.156,2182.5,2180.1,57.2704]
[1625297750550,3.156,2182.5,2180.1,58.1934]
[1625297750698,4.86967,2181.9,2181.8,2.20527]
[1625297751098,4.86967,2181.9,2180.1,57.2704]
[1625297751404,2.6644,2181.9,2180.1,57.2704]
[1625297751501,2.6644,2181.9,2180.1,62.2704]
[1625297751600,2.6644,2181.9,2180.1,57.2704]
[1625297751755,1.0,2183.8,2180.1,57.2704]
[1625297751852,8.5265,2183.9,2180.2,17.566094]
[1625297752053,0.30802433,2183.8,2180.2,17.566094]
[1625297752151,14.72332433,2183.8,2180.2,17.566094]
[1625297752250,14.72332433,2183.8,2180.3,5.0]
[1625297752351,14.4153,2183.8,2180.3,6.0]
[1625297752600,2.20527,2182.6,2182.5,2.20527]
[1625297752700,4.54437,2182.6,2182.5,2.20527]
[1625297753005,2.3391,2182.6,2182.5,2.20527]
[1625297753461,14.4153,2183.8,2182.5,2.20527]
[1625297753807,4.759,2183.9,2182.5,2.20527]
[1625297754206,0.9788373,2184.1,2182.5,2.20527]
[1625297754404,0.9788373,2184.1,2182.6,16.616097]
[1625297754605,0.9788373,2184.1,2184.0,4.41054]
[1625297754956,0.9788373,2184.1,2182.6,16.616097]
[1625297755054,3.6681373,2184.1,2182.5,16.517975]
[1625297755356,3.6681373,2184.1,2181.2,15.1361]
[1625297755455,3.6681373,2184.1,2183.0,50.3203]
[1625297755706,3.6681373,2184.1,2182.6,16.568733]
[1625297755815,3.6681373,2184.1,2183.1,16.659688]
[1625297756108,3.6681373,2184.1,2179.8,4.6599]
[1625297756209,3.6681373,2184.1,2180.7,1.0]
[1625297756622,2.20527,2182.0,2181.7,2.20527]
[1625297756714,4.99537,2182.0,2181.7,2.20527]
[1625297756830,2.25257,2182.0,2181.7,2.20527]